[Event "*** Titled Tuesday Blitz"]
[Site "Chess.com"]
[Date "2020.04.07"]
[Round "4"]
[White "XDPS"]
[Black "TigrVShlyape"]
[Result "0-1"]
[WhiteElo "2703"]
[BlackElo "2850"]
[TimeControl "180+1"]
[EndTime "13:40:24 PDT"]
[Termination "TigrVShlyape won by resignation"]

1. d4 {[%clk 0:02:57.2]} 1... d5 {[%clk 0:02:55.6]} 2. Bf4 {[%clk 0:02:57.2]}
2... c5 {[%clk 0:02:53.6]} 3. e3 {[%clk 0:02:57.1]} 3... Nc6 {[%clk 0:02:53.1]}
4. Nf3 {[%clk 0:02:56.9]} 4... cxd4 {[%clk 0:02:52.3]} 5. exd4 {[%clk
0:02:56.4]} 5... Bg4 {[%clk 0:02:51.3]} 6. c3 {[%clk 0:02:55.6]} 6... e6 {[%clk
0:02:51.5]} 7. Nbd2 {[%clk 0:02:55.1]} 7... Bd6 {[%clk 0:02:50.3]} 8. Bxd6
{[%clk 0:02:55.4]} 8... Qxd6 {[%clk 0:02:49.9]} 9. Bd3 {[%clk 0:02:54.2]} 9...
Nge7 {[%clk 0:02:48.8]} 10. O-O {[%clk 0:02:54.6]} 10... h6 {[%clk 0:02:44.6]}
11. Re1 {[%clk 0:02:54.9]} 11... O-O {[%clk 0:02:39.7]} 12. Qa4 {[%clk
0:02:49.2]} 12... f6 {[%clk 0:02:33.8]} 13. Re3 {[%clk 0:02:19.1]} 13... Bf5
{[%clk 0:02:18.8]} 14. Bf1 {[%clk 0:02:13.7]} 14... e5 {[%clk 0:02:14.5]} 15.
dxe5 {[%clk 0:02:12.9]} 15... fxe5 {[%clk 0:02:14.1]} 16. Rae1 {[%clk
0:02:13.3]} 16... e4 {[%clk 0:02:13.6]} 17. Nd4 {[%clk 0:01:53.9]} 17... Bd7
{[%clk 0:02:12.9]} 18. Nxc6 {[%clk 0:01:25.6]} 18... bxc6 {[%clk 0:02:00.2]} 19.
f3 {[%clk 0:01:15.2]} 19... Nf5 {[%clk 0:01:54.7]} 20. R3e2 {[%clk 0:01:13.8]}
20... e3 {[%clk 0:01:43.6]} 21. Nb3 {[%clk 0:01:09.9]} 21... c5 {[%clk
0:01:43.7]} 22. Qa3 {[%clk 0:01:07.1]} 22... Rac8 {[%clk 0:01:38.3]} 23. Rxe3
{[%clk 0:00:40.9]} 23... Nxe3 {[%clk 0:01:37.4]} 24. Rxe3 {[%clk 0:00:41.8]}
24... Qb6 {[%clk 0:01:23.8]} 25. Re7 {[%clk 0:00:32]} 25... Rf7 {[%clk
0:01:21.5]} 26. Re1 {[%clk 0:00:30.9]} 26... Kh8 {[%clk 0:01:11]} 27. Rd1 {[%clk
0:00:28.7]} 27... Be6 {[%clk 0:01:03.5]} 28. Kh1 {[%clk 0:00:23]} 28... Re7
{[%clk 0:00:58]} 29. Nc1 {[%clk 0:00:22.8]} 29... Bf7 {[%clk 0:00:55.1]} 30. Nd3
{[%clk 0:00:23.1]} 30... a5 {[%clk 0:00:48.9]} 31. Nf4 {[%clk 0:00:22.6]} 31...
Re5 {[%clk 0:00:46.7]} 32. Nd3 {[%clk 0:00:21.8]} 32... Re3 {[%clk 0:00:45.9]}
33. Qa4 {[%clk 0:00:20.2]} 33... Rce8 {[%clk 0:00:42.6]} 34. Qd7 {[%clk
0:00:19.3]} 34... Bg8 {[%clk 0:00:36.5]} 35. Qf5 {[%clk 0:00:17.2]} 35... d4
{[%clk 0:00:28.9]} 36. Nf4 {[%clk 0:00:17.2]} 36... Bh7 {[%clk 0:00:28.1]} 37.
Qb1 {[%clk 0:00:16.6]} 37... Bxb1 {[%clk 0:00:25.1]} 0-1

[Event "*** Titled Tuesday Blitz"]
[Site "Chess.com"]
[Date "2020.04.07"]
[Round "4"]
[White "FelixBlohberger"]
[Black "imdvb6307"]
[Result "1-0"]
[WhiteElo "2601"]
[BlackElo "2397"]
[TimeControl "180+1"]
[EndTime "13:40:27 PDT"]
[Termination "FelixBlohberger won on time"]

1. d4 {[%clk 0:03:00.9]} 1... d5 {[%clk 0:02:58.8]} 2. Bf4 {[%clk 0:02:59.2]}
2... c6 {[%clk 0:02:56.9]} 3. e3 {[%clk 0:02:58.6]} 3... Bf5 {[%clk 0:02:56.3]}
4. c4 {[%clk 0:02:57.8]} 4... e6 {[%clk 0:02:55.5]} 5. Nc3 {[%clk 0:02:57.7]}
5... Nf6 {[%clk 0:02:53.7]} 6. Qb3 {[%clk 0:02:57.6]} 6... Qb6 {[%clk
0:02:43.9]} 7. c5 {[%clk 0:02:57.5]} 7... Qxb3 {[%clk 0:02:43.9]} 8. axb3 {[%clk
0:02:58.4]} 8... Nbd7 {[%clk 0:01:46]} 9. b4 {[%clk 0:02:57]} 9... Be7 {[%clk
0:01:45.8]} 10. h3 {[%clk 0:02:52.3]} 10... b5 {[%clk 0:01:33.2]} 11. Nf3 {[%clk
0:02:38.3]} 11... h6 {[%clk 0:01:29.7]} 12. Ra6 {[%clk 0:02:37.5]} 12... Rc8
{[%clk 0:01:16.9]} 13. Rxa7 {[%clk 0:02:31.2]} 13... O-O {[%clk 0:01:07.9]} 14.
Ne5 {[%clk 0:02:25.1]} 14... Rfd8 {[%clk 0:01:07.2]} 15. Be2 {[%clk 0:02:22.7]}
15... Bf8 {[%clk 0:01:06.3]} 16. Kd2 {[%clk 0:02:13.7]} 16... Nxe5 {[%clk
0:01:06]} 17. Bxe5 {[%clk 0:02:10.1]} 17... Ne4+ {[%clk 0:01:06.1]} 18. Nxe4
{[%clk 0:02:09.4]} 18... Bxe4 {[%clk 0:01:05.5]} 19. f3 {[%clk 0:02:08.6]} 19...
Bg6 {[%clk 0:01:05.6]} 20. Rha1 {[%clk 0:02:06.8]} 20... f6 {[%clk 0:01:05.2]}
21. Bc7 {[%clk 0:02:00.7]} 21... Rd7 {[%clk 0:01:04.2]} 22. Bd6 {[%clk
0:01:40.9]} 22... Rxa7 {[%clk 0:00:59.8]} 23. Rxa7 {[%clk 0:01:40.3]} 23... Be8
{[%clk 0:00:56.2]} 24. Bxf8 {[%clk 0:01:38.8]} 24... Kxf8 {[%clk 0:00:55.8]} 25.
e4 {[%clk 0:01:39.1]} 25... Rd8 {[%clk 0:00:48.6]} 26. Ke3 {[%clk 0:01:36.5]}
26... Rd7 {[%clk 0:00:45.7]} 27. Ra8 {[%clk 0:01:33.4]} 27... Ke7 {[%clk
0:00:44.9]} 28. Bd3 {[%clk 0:01:28.8]} 28... Rd8 {[%clk 0:00:37.5]} 29. Ra7+
{[%clk 0:01:26.8]} 29... Rd7 {[%clk 0:00:37.4]} 30. Ra6 {[%clk 0:01:27.3]} 30...
Rc7 {[%clk 0:00:23]} 31. f4 {[%clk 0:01:27.2]} 31... Bd7 {[%clk 0:00:20.5]} 32.
g4 {[%clk 0:01:24.6]} 32... Be8 {[%clk 0:00:19.7]} 33. f5 {[%clk 0:01:20.2]}
33... Bf7 {[%clk 0:00:19]} 34. fxe6 {[%clk 0:01:13.5]} 34... Bxe6 {[%clk
0:00:18.8]} 35. exd5 {[%clk 0:01:13.4]} 35... Bxd5 {[%clk 0:00:18.6]} 36. Be4
{[%clk 0:01:11.9]} 36... Bxe4 {[%clk 0:00:16.8]} 37. Kxe4 {[%clk 0:01:11.9]}
37... Kd7 {[%clk 0:00:17]} 38. d5 {[%clk 0:01:10.8]} 38... cxd5+ {[%clk
0:00:11.8]} 39. Kxd5 {[%clk 0:01:11.3]} 39... Ke7 {[%clk 0:00:07.3]} 40. Re6+
{[%clk 0:01:10.1]} 40... Kf7 {[%clk 0:00:07]} 41. c6 {[%clk 0:01:09.2]} 41...
Ra7 {[%clk 0:00:06.9]} 42. Kd6 {[%clk 0:01:07.5]} 42... Ra6 {[%clk 0:00:06.6]}
43. Re7+ {[%clk 0:01:07.1]} 43... Kf8 {[%clk 0:00:06.6]} 44. Rb7 {[%clk
0:01:07.6]} 44... Ke8 {[%clk 0:00:05.5]} 45. Kc5 {[%clk 0:01:06.6]} 45... g5
{[%clk 0:00:04.3]} 46. Kxb5 {[%clk 0:01:05.1]} 46... Ra1 {[%clk 0:00:03.5]} 47.
Rh7 {[%clk 0:01:03.3]} 47... Re1 {[%clk 0:00:02.2]} 48. c7 {[%clk 0:01:02.8]}
1-0

[Event "*** Titled Tuesday Blitz"]
[Site "Chess.com"]
[Date "2020.04.07"]
[Round "4"]
[White "Oleg_Papayan"]
[Black "TomasKapitanchuk"]
[Result "1-0"]
[WhiteElo "2340"]
[BlackElo "2483"]
[TimeControl "180+1"]
[EndTime "13:40:27 PDT"]
[Termination "Oleg_Papayan won by resignation"]

1. e4 {[%clk 0:03:00.9]} 1... c5 {[%clk 0:02:59.8]} 2. Nf3 {[%clk 0:03:00.7]}
2... e6 {[%clk 0:03:00.3]} 3. d4 {[%clk 0:03:00.9]} 3... cxd4 {[%clk 0:03:01.2]}
4. Nxd4 {[%clk 0:03:01.8]} 4... Nc6 {[%clk 0:03:01.6]} 5. Nc3 {[%clk 0:02:59.5]}
5... Qc7 {[%clk 0:03:01.3]} 6. Nb3 {[%clk 0:02:42.6]} 6... Nf6 {[%clk
0:02:59.6]} 7. Qf3 {[%clk 0:02:38.6]} 7... a6 {[%clk 0:02:52.1]} 8. Bg5 {[%clk
0:02:35.7]} 8... Be7 {[%clk 0:02:49]} 9. O-O-O {[%clk 0:02:31.1]} 9... O-O
{[%clk 0:02:41.8]} 10. Qg3 {[%clk 0:02:23.5]} 10... Qxg3 {[%clk 0:02:29.6]} 11.
hxg3 {[%clk 0:02:23.1]} 11... b5 {[%clk 0:02:21.7]} 12. f3 {[%clk 0:02:15.7]}
12... b4 {[%clk 0:02:16.3]} 13. Na4 {[%clk 0:02:15.4]} 13... d6 {[%clk 0:02:04]}
14. Nb6 {[%clk 0:02:01.9]} 14... Rb8 {[%clk 0:01:59.4]} 15. Nxc8 {[%clk
0:01:55.5]} 15... Rfxc8 {[%clk 0:02:00.3]} 16. Bxa6 {[%clk 0:01:54.7]} 16... Rc7
{[%clk 0:02:00.6]} 17. Be2 {[%clk 0:01:45.9]} 17... Ra7 {[%clk 0:01:51.6]} 18.
Kb1 {[%clk 0:01:45.9]} 18... Rba8 {[%clk 0:01:39.3]} 19. Nc1 {[%clk 0:01:39.7]}
19... d5 {[%clk 0:01:23.6]} 20. Be3 {[%clk 0:01:38.9]} 20... Rb7 {[%clk
0:01:18.5]} 21. Nb3 {[%clk 0:01:05.5]} 21... dxe4 {[%clk 0:01:14.5]} 22. fxe4
{[%clk 0:01:05.7]} 22... Nxe4 {[%clk 0:00:53.5]} 23. Bf3 {[%clk 0:01:05.7]}
23... f5 {[%clk 0:00:53.9]} 24. Rhe1 {[%clk 0:00:47.8]} 24... Rc8 {[%clk
0:00:42]} 25. Bc1 {[%clk 0:00:44.6]} 25... Bf6 {[%clk 0:00:38.1]} 26. Bxe4
{[%clk 0:00:43.2]} 26... fxe4 {[%clk 0:00:39]} 27. Rxe4 {[%clk 0:00:44.1]} 27...
Kf7 {[%clk 0:00:38.2]} 28. g4 {[%clk 0:00:44.5]} 28... h6 {[%clk 0:00:38]} 29.
Rxe6 {[%clk 0:00:37.6]} 29... Kxe6 {[%clk 0:00:35.3]} 30. Nc5+ {[%clk
0:00:37.5]} 30... Ke7 {[%clk 0:00:35]} 31. Nxb7 {[%clk 0:00:38.4]} 31... Ne5
{[%clk 0:00:34.5]} 32. Nd6 {[%clk 0:00:37.3]} 32... Rc6 {[%clk 0:00:25.1]} 33.
Nf5+ {[%clk 0:00:37.2]} 33... Kf7 {[%clk 0:00:25.3]} 34. Rd4 {[%clk 0:00:26.6]}
34... Nc4 {[%clk 0:00:23.8]} 35. Rxc4 {[%clk 0:00:24.9]} 1-0

[Event "*** Titled Tuesday Blitz"]
[Site "Chess.com"]
[Date "2020.04.07"]
[Round "4"]
[White "temus_galaktionov"]
[Black "Sam_ChessMood"]
[Result "0-1"]
[WhiteElo "2742"]
[BlackElo "2923"]
[TimeControl "180+1"]
[EndTime "13:40:29 PDT"]
[Termination "Sam_ChessMood won by resignation"]

1. d4 {[%clk 0:03:00.9]} 1... Nf6 {[%clk 0:02:59.4]} 2. Nf3 {[%clk 0:02:58.3]}
2... d5 {[%clk 0:02:58.9]} 3. c4 {[%clk 0:02:58.6]} 3... e6 {[%clk 0:02:59.3]}
4. Nc3 {[%clk 0:02:57.3]} 4... Be7 {[%clk 0:02:58.8]} 5. Bf4 {[%clk 0:02:56.5]}
5... O-O {[%clk 0:02:58.3]} 6. e3 {[%clk 0:02:55.9]} 6... c5 {[%clk 0:02:58.5]}
7. dxc5 {[%clk 0:02:55.4]} 7... Bxc5 {[%clk 0:02:59.4]} 8. cxd5 {[%clk
0:02:55.5]} 8... Nxd5 {[%clk 0:02:59.1]} 9. Nxd5 {[%clk 0:02:55.3]} 9... exd5
{[%clk 0:03:00]} 10. a3 {[%clk 0:02:55.8]} 10... Nc6 {[%clk 0:02:59.2]} 11. Bd3
{[%clk 0:02:56.4]} 11... Bb6 {[%clk 0:02:57.9]} 12. O-O {[%clk 0:02:55.9]} 12...
Qf6 {[%clk 0:02:58.1]} 13. Qc2 {[%clk 0:02:53.1]} 13... h6 {[%clk 0:02:57.9]}
14. Bg3 {[%clk 0:02:14.4]} 14... Bg4 {[%clk 0:02:53.8]} 15. Be2 {[%clk
0:02:14.1]} 15... Rac8 {[%clk 0:02:40.9]} 16. Qd2 {[%clk 0:02:11.2]} 16... Rfd8
{[%clk 0:02:33.4]} 17. h3 {[%clk 0:01:56.4]} 17... Bxf3 {[%clk 0:02:14]} 18.
Bxf3 {[%clk 0:01:57.3]} 18... d4 {[%clk 0:02:14.4]} 19. e4 {[%clk 0:01:31.4]}
19... Ne5 {[%clk 0:01:50.5]} 20. Bxe5 {[%clk 0:01:27.5]} 20... Qxe5 {[%clk
0:01:50.7]} 21. Qd3 {[%clk 0:01:28.4]} 21... h5 {[%clk 0:01:33.1]} 22. Rac1
{[%clk 0:01:26]} 22... h4 {[%clk 0:01:30.4]} 23. Bg4 {[%clk 0:01:23.8]} 23...
Rxc1 {[%clk 0:01:23.6]} 24. Rxc1 {[%clk 0:01:24.7]} 24... g6 {[%clk 0:01:22.4]}
25. Bd1 {[%clk 0:01:16]} 25... Re8 {[%clk 0:01:13.4]} 26. Bf3 {[%clk 0:01:03.7]}
26... Kg7 {[%clk 0:01:11.7]} 27. b4 {[%clk 0:00:44.5]} 27... Re7 {[%clk
0:01:04.7]} 28. Rc2 {[%clk 0:00:43.6]} 28... a6 {[%clk 0:01:03.3]} 29. Rc1
{[%clk 0:00:36.5]} 29... Rd7 {[%clk 0:01:02.6]} 30. Bg4 {[%clk 0:00:34.9]} 30...
Re7 {[%clk 0:01:02.7]} 31. Bf3 {[%clk 0:00:33.7]} 31... Ba7 {[%clk 0:00:56.3]}
32. Kf1 {[%clk 0:00:29.4]} 32... Qh2 {[%clk 0:00:52.7]} 33. Re1 {[%clk 0:00:24]}
33... Rc7 {[%clk 0:00:44.8]} 34. e5 {[%clk 0:00:24]} 34... Rc3 {[%clk
0:00:44.4]} 35. Qd2 {[%clk 0:00:18.7]} 35... d3 {[%clk 0:00:43.8]} 36. g4 {[%clk
0:00:08.2]} 36... hxg3 {[%clk 0:00:38.2]} 37. Bg2 {[%clk 0:00:02.6]} 37... gxf2
{[%clk 0:00:34.3]} 0-1

[Event "*** Titled Tuesday Blitz"]
[Site "Chess.com"]
[Date "2020.04.07"]
[Round "4"]
[White "TregubovP"]
[Black "SHIVACalypso"]
[Result "1-0"]
[WhiteElo "2458"]
[BlackElo "2213"]
[TimeControl "180+1"]
[EndTime "13:40:31 PDT"]
[Termination "TregubovP won by resignation"]

1. e4 {[%clk 0:02:59.9]} 1... e6 {[%clk 0:03:00]} 2. d4 {[%clk 0:02:59.6]} 2...
d5 {[%clk 0:03:00.6]} 3. exd5 {[%clk 0:03:00]} 3... exd5 {[%clk 0:03:01.5]} 4.
Nf3 {[%clk 0:02:58.6]} 4... Nf6 {[%clk 0:03:02]} 5. Bd3 {[%clk 0:02:58.6]} 5...
Bd6 {[%clk 0:03:01.5]} 6. Qe2+ {[%clk 0:02:58.7]} 6... Qe7 {[%clk 0:02:59.9]} 7.
Qxe7+ {[%clk 0:02:57.9]} 7... Kxe7 {[%clk 0:03:00.8]} 8. O-O {[%clk 0:02:57.9]}
8... Re8 {[%clk 0:03:01.1]} 9. Re1+ {[%clk 0:02:58.5]} 9... Kf8 {[%clk
0:03:00.9]} 10. Rxe8+ {[%clk 0:02:59.1]} 10... Kxe8 {[%clk 0:03:01]} 11. Bg5
{[%clk 0:02:57.3]} 11... Ne4 {[%clk 0:02:55.5]} 12. Bh4 {[%clk 0:02:52.2]} 12...
Nc6 {[%clk 0:02:45.5]} 13. Nbd2 {[%clk 0:02:51]} 13... f5 {[%clk 0:02:42.9]} 14.
c3 {[%clk 0:02:44.8]} 14... h6 {[%clk 0:02:33.6]} 15. Re1 {[%clk 0:02:22.3]}
15... g5 {[%clk 0:02:32.4]} 16. Bg3 {[%clk 0:02:21.5]} 16... f4 {[%clk
0:02:31.7]} 17. Nxe4 {[%clk 0:02:06]} 17... dxe4 {[%clk 0:02:30.9]} 18. Bxe4
{[%clk 0:02:03.1]} 18... Kf8 {[%clk 0:02:26.2]} 19. b4 {[%clk 0:01:51.8]} 19...
fxg3 {[%clk 0:02:24.4]} 20. hxg3 {[%clk 0:01:51.5]} 20... Ne7 {[%clk 0:02:16]}
21. a4 {[%clk 0:01:37.7]} 21... c6 {[%clk 0:02:14.5]} 22. b5 {[%clk 0:01:33.5]}
22... Bf5 {[%clk 0:02:07.5]} 23. Bxf5 {[%clk 0:01:33.3]} 23... Nxf5 {[%clk
0:02:08.4]} 24. bxc6 {[%clk 0:01:31.3]} 24... bxc6 {[%clk 0:02:09.3]} 25. g4
{[%clk 0:01:31.2]} 25... Ng7 {[%clk 0:02:04.8]} 26. Kf1 {[%clk 0:01:27.9]} 26...
Re8 {[%clk 0:02:00.2]} 27. Rb1 {[%clk 0:01:27.5]} 27... Rb8 {[%clk 0:01:58]} 28.
Rxb8+ {[%clk 0:01:22.4]} 28... Bxb8 {[%clk 0:01:58.9]} 29. Ke2 {[%clk
0:01:22.4]} 29... Ke7 {[%clk 0:01:57.1]} 30. Kd3 {[%clk 0:01:22.4]} 30... Ne6
{[%clk 0:01:52.1]} 31. Ke4 {[%clk 0:01:20.7]} 31... Kf6 {[%clk 0:01:42.4]} 32.
g3 {[%clk 0:01:19.4]} 32... Nc7 {[%clk 0:01:35]} 33. Ne5 {[%clk 0:01:19.2]}
33... Na6 {[%clk 0:01:10.1]} 34. Nxc6 {[%clk 0:01:18.9]} 34... Ke6 {[%clk
0:01:03.6]} 35. c4 {[%clk 0:01:18.5]} 35... Bc7 {[%clk 0:00:57.6]} 36. Nxa7
{[%clk 0:01:16]} 36... Ba5 {[%clk 0:00:56.6]} 37. Nc6 {[%clk 0:01:10.4]} 37...
Be1 {[%clk 0:00:54.4]} 38. f4 {[%clk 0:00:49.5]} 38... Bxg3 {[%clk 0:00:54.4]}
39. f5+ {[%clk 0:00:49.9]} 39... Kd7 {[%clk 0:00:50.9]} 40. Ne5+ {[%clk
0:00:49]} 40... Bxe5 {[%clk 0:00:47.8]} 41. Kxe5 {[%clk 0:00:46.7]} 41... Ke7
{[%clk 0:00:43.4]} 42. a5 {[%clk 0:00:46.7]} 42... Nb4 {[%clk 0:00:41.2]} 43. d5
{[%clk 0:00:44.3]} 43... Nd3+ {[%clk 0:00:35.4]} 44. Kd4 {[%clk 0:00:43.8]}
44... Nb4 {[%clk 0:00:33.8]} 45. c5 {[%clk 0:00:44.2]} 45... Kd7 {[%clk
0:00:28.2]} 46. c6+ {[%clk 0:00:43.8]} 46... Kd6 {[%clk 0:00:27.2]} 47. f6
{[%clk 0:00:44.2]} 47... h5 {[%clk 0:00:22.3]} 48. f7 {[%clk 0:00:42.9]} 48...
Ke7 {[%clk 0:00:21.9]} 49. c7 {[%clk 0:00:42.1]} 1-0

[Event "*** Titled Tuesday Blitz"]
[Site "Chess.com"]
[Date "2020.04.07"]
[Round "4"]
[White "almo64"]
[Black "LyonBeast"]
[Result "0-1"]
[WhiteElo "2661"]
[BlackElo "2997"]
[TimeControl "180+1"]
[EndTime "13:40:32 PDT"]
[Termination "LyonBeast won on time"]

1. e4 {[%clk 0:03:00.9]} 1... e5 {[%clk 0:02:57.7]} 2. Nf3 {[%clk 0:03:00.9]}
2... Nc6 {[%clk 0:02:56.4]} 3. d4 {[%clk 0:02:59.4]} 3... exd4 {[%clk
0:02:56.1]} 4. Nxd4 {[%clk 0:02:59.6]} 4... Nf6 {[%clk 0:02:55.2]} 5. Nc3 {[%clk
0:02:59.8]} 5... Bb4 {[%clk 0:02:54.7]} 6. Nxc6 {[%clk 0:03:00]} 6... bxc6
{[%clk 0:02:54.9]} 7. Bd3 {[%clk 0:03:00.2]} 7... O-O {[%clk 0:02:54.3]} 8. O-O
{[%clk 0:02:59.5]} 8... Re8 {[%clk 0:02:54.3]} 9. Bg5 {[%clk 0:02:59.5]} 9... h6
{[%clk 0:02:53.2]} 10. Bh4 {[%clk 0:02:59.6]} 10... d6 {[%clk 0:02:52.5]} 11. f4
{[%clk 0:02:56.6]} 11... Rb8 {[%clk 0:02:50.3]} 12. Kh1 {[%clk 0:02:56]} 12...
Bb7 {[%clk 0:02:18.9]} 13. e5 {[%clk 0:02:38.9]} 13... dxe5 {[%clk 0:02:15.6]}
14. fxe5 {[%clk 0:02:39]} 14... Rxe5 {[%clk 0:02:01.4]} 15. Bxf6 {[%clk
0:02:38.9]} 15... gxf6 {[%clk 0:02:02.3]} 16. Qg4+ {[%clk 0:02:37.7]} 16... Rg5
{[%clk 0:02:02.4]} 17. Qe4 {[%clk 0:01:58.4]} 17... Rg7 {[%clk 0:01:28.7]} 18.
Qh4 {[%clk 0:01:10.4]} 18... f5 {[%clk 0:01:07.6]} 19. Qxd8+ {[%clk 0:00:45.1]}
19... Rxd8 {[%clk 0:01:08.5]} 20. Rxf5 {[%clk 0:00:39.5]} 20... c5 {[%clk
0:01:08.6]} 21. Rf2 {[%clk 0:00:31.7]} 21... c4 {[%clk 0:01:03.1]} 22. Bxc4
{[%clk 0:00:27.9]} 22... Bc5 {[%clk 0:01:03.2]} 23. Re2 {[%clk 0:00:27.8]} 23...
Rg4 {[%clk 0:00:59.8]} 24. Bd3 {[%clk 0:00:26]} 24... Bd4 {[%clk 0:00:56.6]} 25.
Rd1 {[%clk 0:00:19.7]} 25... Kg7 {[%clk 0:00:55.2]} 26. Rf1 {[%clk 0:00:15.3]}
26... Re8 {[%clk 0:00:51.5]} 27. Rd2 {[%clk 0:00:10.2]} 27... Be3 {[%clk
0:00:50.3]} 28. Re2 {[%clk 0:00:10]} 28... Bb6 {[%clk 0:00:47.6]} 29. Rd2 {[%clk
0:00:09.9]} 29... Re5 {[%clk 0:00:47.3]} 30. h3 {[%clk 0:00:08.5]} 30... Rh5
{[%clk 0:00:42.8]} 31. Kh2 {[%clk 0:00:08.8]} 31... Bd4 {[%clk 0:00:39.4]} 32.
Re2 {[%clk 0:00:06.3]} 32... Be5+ {[%clk 0:00:38.1]} 33. Kg1 {[%clk 0:00:02.9]}
33... Rxh3 {[%clk 0:00:36.5]} 0-1

[Event "*** Titled Tuesday Blitz"]
[Site "Chess.com"]
[Date "2020.04.07"]
[Round "4"]
[White "quesfr"]
[Black "Enriquack"]
[Result "0-1"]
[WhiteElo "2185"]
[BlackElo "2421"]
[TimeControl "180+1"]
[EndTime "13:40:32 PDT"]
[Termination "Enriquack won on time"]

1. e4 {[%clk 0:03:00.9]} 1... c5 {[%clk 0:02:59.7]} 2. c3 {[%clk 0:03:00.6]}
2... d5 {[%clk 0:02:58.6]} 3. exd5 {[%clk 0:03:01.5]} 3... Qxd5 {[%clk
0:02:59.4]} 4. d4 {[%clk 0:03:01.4]} 4... Nf6 {[%clk 0:02:59.5]} 5. Nf3 {[%clk
0:03:01]} 5... Nc6 {[%clk 0:02:54.4]} 6. Be2 {[%clk 0:02:59.7]} 6... e6 {[%clk
0:02:53.3]} 7. O-O {[%clk 0:02:58.7]} 7... cxd4 {[%clk 0:02:52.4]} 8. cxd4
{[%clk 0:02:58.8]} 8... Be7 {[%clk 0:02:52.5]} 9. Nc3 {[%clk 0:02:57.9]} 9...
Qd6 {[%clk 0:02:52.5]} 10. Nb5 {[%clk 0:02:57.5]} 10... Qb8 {[%clk 0:02:47.8]}
11. g3 {[%clk 0:01:34.7]} 11... Nd5 {[%clk 0:02:46.3]} 12. Bc4 {[%clk
0:01:16.2]} 12... a6 {[%clk 0:02:45.8]} 13. Bxd5 {[%clk 0:01:11.8]} 13... axb5
{[%clk 0:02:46]} 14. Bb3 {[%clk 0:01:06.1]} 14... O-O {[%clk 0:02:39.9]} 15. Qe2
{[%clk 0:00:52.7]} 15... Rd8 {[%clk 0:02:16.3]} 16. Qxb5 {[%clk 0:00:45.7]}
16... Ra7 {[%clk 0:02:00]} 17. Be3 {[%clk 0:00:40.5]} 17... Ra5 {[%clk
0:01:59.4]} 18. Qe2 {[%clk 0:00:20.8]} 18... b6 {[%clk 0:01:49.2]} 19. Rac1
{[%clk 0:00:18.2]} 19... Nb4 {[%clk 0:01:47.4]} 20. a3 {[%clk 0:00:15.1]} 20...
Nd5 {[%clk 0:01:46.5]} 21. Ne5 {[%clk 0:00:11.4]} 21... Bb7 {[%clk 0:01:43.3]}
22. Qh5 {[%clk 0:00:09.7]} 22... g6 {[%clk 0:01:38.9]} 23. Qh3 {[%clk
0:00:09.4]} 23... Nxe3 {[%clk 0:01:35.7]} 24. fxe3 {[%clk 0:00:08.7]} 24... Rxe5
{[%clk 0:01:35.4]} 25. dxe5 {[%clk 0:00:08.5]} 25... Qxe5 {[%clk 0:01:36]} 26.
Rce1 {[%clk 0:00:05.4]} 26... Rd2 {[%clk 0:01:27.1]} 27. Rf2 {[%clk 0:00:05.1]}
27... Rxf2 {[%clk 0:01:26.4]} 28. Kxf2 {[%clk 0:00:04.6]} 28... Qxb2+ {[%clk
0:01:26.9]} 29. Re2 {[%clk 0:00:05.1]} 29... Qxb3 {[%clk 0:01:27.2]} 30. Qg4
{[%clk 0:00:03.7]} 30... Qd5 {[%clk 0:01:25.3]} 31. Qd4 {[%clk 0:00:01.9]} 31...
Qxd4 {[%clk 0:01:23.4]} 32. exd4 {[%clk 0:00:02.8]} 32... Bxa3 {[%clk
0:01:23.6]} 33. Ra2 {[%clk 0:00:02.5]} 33... Be7 {[%clk 0:01:11.1]} 34. Ra7
{[%clk 0:00:03.4]} 34... Bf6 {[%clk 0:01:07.9]} 35. Rxb7 {[%clk 0:00:03.5]}
35... Bxd4+ {[%clk 0:01:08.4]} 36. Ke2 {[%clk 0:00:03.9]} 36... h5 {[%clk
0:01:04.1]} 37. Kd3 {[%clk 0:00:04]} 37... Bc5 {[%clk 0:01:03.4]} 38. Ke4 {[%clk
0:00:04.2]} 38... Kg7 {[%clk 0:00:59.5]} 39. h3 {[%clk 0:00:03.6]} 39... Kf6
{[%clk 0:00:55.4]} 40. g4 {[%clk 0:00:03.4]} 40... hxg4 {[%clk 0:00:54.9]} 41.
hxg4 {[%clk 0:00:04.3]} 41... g5 {[%clk 0:00:53.8]} 42. Kf3 {[%clk 0:00:02.2]}
42... Kg6 {[%clk 0:00:52.8]} 43. Ke4 {[%clk 0:00:02.2]} 43... f5+ {[%clk
0:00:48.4]} 0-1

[Event "*** Titled Tuesday Blitz"]
[Site "Chess.com"]
[Date "2020.04.07"]
[Round "4"]
[White "ecwinslow"]
[Black "Blitzking642"]
[Result "0-1"]
[WhiteElo "2164"]
[BlackElo "2405"]
[TimeControl "180+1"]
[EndTime "13:40:33 PDT"]
[Termination "Blitzking642 won by resignation"]

1. e4 {[%clk 0:03:00.9]} 1... c5 {[%clk 0:02:59.9]} 2. Nf3 {[%clk 0:03:00]} 2...
Nc6 {[%clk 0:03:00]} 3. d4 {[%clk 0:02:58.7]} 3... cxd4 {[%clk 0:03:00.9]} 4.
Nxd4 {[%clk 0:02:58.9]} 4... g6 {[%clk 0:03:01.6]} 5. c4 {[%clk 0:02:57.7]} 5...
Bg7 {[%clk 0:03:02.1]} 6. Be3 {[%clk 0:02:56.7]} 6... Nf6 {[%clk 0:03:02.4]} 7.
Nc3 {[%clk 0:02:57.3]} 7... O-O {[%clk 0:03:02.8]} 8. Be2 {[%clk 0:02:49.7]}
8... d6 {[%clk 0:03:03.1]} 9. Qd2 {[%clk 0:02:46.9]} 9... Bd7 {[%clk 0:03:03]}
10. f3 {[%clk 0:02:42.2]} 10... Nxd4 {[%clk 0:03:01]} 11. Bxd4 {[%clk
0:02:41.2]} 11... a5 {[%clk 0:03:01.7]} 12. h4 {[%clk 0:02:25.1]} 12... h5
{[%clk 0:02:54.1]} 13. g4 {[%clk 0:02:18.7]} 13... hxg4 {[%clk 0:02:51.8]} 14.
h5 {[%clk 0:02:17.3]} 14... e5 {[%clk 0:01:59.6]} 15. Be3 {[%clk 0:02:14.4]}
15... gxh5 {[%clk 0:01:59.4]} 16. Bg5 {[%clk 0:02:08.4]} 16... Be6 {[%clk
0:01:35.3]} 17. fxg4 {[%clk 0:01:55.9]} 17... Qb6 {[%clk 0:01:18.3]} 18. gxh5
{[%clk 0:01:48.8]} 18... Qd4 {[%clk 0:01:16.3]} 19. h6 {[%clk 0:01:27.6]} 19...
Bh8 {[%clk 0:01:05]} 20. O-O-O {[%clk 0:01:03.1]} 20... Qxd2+ {[%clk 0:01:03.2]}
21. Rxd2 {[%clk 0:01:01.9]} 21... Kh7 {[%clk 0:01:03.6]} 22. Rxd6 {[%clk
0:00:58.3]} 22... Rfc8 {[%clk 0:01:03.1]} 23. b3 {[%clk 0:00:56.8]} 23... a4
{[%clk 0:00:47.7]} 24. Kb2 {[%clk 0:00:50.6]} 24... axb3 {[%clk 0:00:44.7]} 25.
axb3 {[%clk 0:00:49.7]} 25... Rg8 {[%clk 0:00:39.3]} 26. Rg1 {[%clk 0:00:33.4]}
26... Rg6 {[%clk 0:00:27]} 27. Be3 {[%clk 0:00:28.4]} 27... Rxg1 {[%clk
0:00:26]} 28. Bxg1 {[%clk 0:00:27.5]} 28... Rg8 {[%clk 0:00:26.4]} 29. Bh2
{[%clk 0:00:25.9]} 29... Rg2 {[%clk 0:00:22.7]} 30. Bxe5 {[%clk 0:00:24.3]}
30... Nxe4 {[%clk 0:00:22.9]} 31. Bxh8 {[%clk 0:00:23]} 31... Kxh8 {[%clk
0:00:20.3]} 32. Rd8+ {[%clk 0:00:15.7]} 32... Kh7 {[%clk 0:00:20]} 33. Kc1
{[%clk 0:00:14.9]} 33... Nxc3 {[%clk 0:00:19.8]} 34. Bd3+ {[%clk 0:00:15.1]}
34... Kxh6 {[%clk 0:00:20]} 35. Rh8+ {[%clk 0:00:13.7]} 35... Kg7 {[%clk
0:00:20]} 36. Rh7+ {[%clk 0:00:13.6]} 36... Kf6 {[%clk 0:00:20.1]} 37. Rh6+
{[%clk 0:00:13.1]} 37... Ke7 {[%clk 0:00:20.2]} 38. Rh3 {[%clk 0:00:12.3]} 38...
Na2+ {[%clk 0:00:19.8]} 0-1